bitfinex/quotes_SOLUSD_20230113
["timestamp","ask_amount","ask_price","bid_price","bid_amount"]
[1673630552397,44.38,16.9,16.881,29.9691928]
[1673630552625,160.4861,16.9,16.882,20.0]
[1673630552830,44.38,16.901,16.882,20.0]
[1673630553048,44.37,16.904,16.89,23.89]
[1673630553362,116.1061,16.905,16.891,29.9691928]
[1673630553553,44.38,16.903,16.891,29.9691928]
[1673630553764,44.37,16.904,16.891,29.9691928]
[1673630554501,44.37,16.906,16.891,74.3791928]
[1673630554713,44.36,16.909,16.892,20.0]
[1673630554924,44.36,16.91,16.893,17.0]
[1673630555137,44.36,16.91,16.894,20.0]
[1673630555343,44.36,16.91,16.894,99.01424643]
[1673630555552,44.36,16.91,16.895,44.4]
[1673630555765,44.36,16.91,16.895,74.3691928]
[1673630555973,115.6254,16.911,16.895,74.3691928]
[1673630555974,159.9754,16.911,16.896,46.9691928]
[1673630556183,20.0,16.91,16.894,20.0]
[1673630556381,44.36,16.909,16.892,20.0]
[1673630556810,224.26,16.909,16.889,29.9691928]
[1673630557222,20.0,16.908,16.889,29.9691928]
[1673630557649,179.9,16.906,16.882,44.43]
[1673630557863,20.0,16.905,16.882,74.3991928]
[1673630558076,179.9,16.904,16.883,29.9691928]
[1673630558502,160.1485,16.903,16.883,29.9691928]
[1673630558919,160.1485,16.903,16.885,20.0]
[1673630559330,160.1485,16.903,16.886,74.3891928]
[1673630559539,115.7685,16.903,16.886,74.3891928]
[1673630559774,224.25,16.912,16.89,119.52]
[1673630559980,119.9325,16.91,16.89,119.52]
[1673630560172,119.9325,16.91,16.891,136.92424643]
[1673630560387,119.9325,16.91,16.892,37.0]
[1673630560616,119.9325,16.91,16.893,20.0]
[1673630560796,44.34,16.918,16.9,23.89]
[1673630561129,119.9325,16.917,16.901,20.0]
[1673630561316,119.9325,16.917,16.902,20.0]
[1673630561525,119.9325,16.917,16.902,49.9691928]
[1673630561764,119.9325,16.917,16.903,44.38]
[1673630562083,119.9325,16.917,16.904,20.0]
[1673630562798,119.9325,16.917,16.905,17.0]
[1673630563001,119.9325,16.917,16.906,20.0]
[1673630563438,163.7328,16.92,16.907,29.9691928]
[1673630563640,119.4028,16.92,16.907,29.9691928]
[1673630563858,119.4028,16.92,16.908,17.0]
[1673630564185,44.32,16.925,16.909,49.9691928]
[1673630564400,160.2776,16.926,16.91,23.93]
[1673630564710,115.9576,16.926,16.911,29.9691928]
[1673630564915,44.32,16.925,16.911,109.93839226]
[1673630565127,160.2776,16.926,16.912,20.0]
[1673630565335,115.9576,16.926,16.913,17.0]
[1673630565553,44.31,16.928,16.913,46.9691928]
[1673630565859,160.2476,16.936,16.914,94.3191928]
[1673630566081,20.0,16.935,16.915,20.0]
[1673630566271,20.0,16.935,16.916,20.0]
[1673630566476,25.1784343,16.922,16.916,94.3091928]
[1673630566685,25.1784343,16.922,16.917,46.9691928]
[1673630566896,115.9576,16.936,16.918,20.0]
[1673630567117,115.9576,16.936,16.92,22.2]
[1673630567530,64.26,16.946,16.921,91.2991928]
[1673630567740,117.5377,16.945,16.922,20.0]
[1673630567953,117.5377,16.945,16.922,128.13344589]
[1673630568177,20.0,16.944,16.923,111.2891928]
[1673630568373,20.0,16.944,16.924,20.0]
[1673630568586,20.3017467,16.95,16.924,62.54505363]
[1673630568796,20.3017467,16.95,16.93,110.84]
[1673630568797,117.5377,16.949,16.93,110.84]
[1673630568997,117.5377,16.949,16.925,158.48059255]
[1673630568998,20.0,16.948,16.926,20.0]
[1673630569208,199.9,16.948,16.926,43.70099222]
[1673630569423,44.26,16.947,16.927,20.0]
[1673630569856,160.7921,16.947,16.927,20.0]
[1673630570061,160.7921,16.947,16.926,20.0]
[1673630570283,160.7921,16.947,16.927,29.9691928]
[1673630570471,116.5321,16.947,16.93,111.0]
[1673630570679,116.5321,16.947,16.931,20.0]
[1673630570889,116.5321,16.947,16.931,133.22384559]
[1673630571105,20.3017467,16.95,16.94,22.2]
[1673630571523,20.3017467,16.95,16.941,46.9691928]
[1673630571750,110.93,16.98,16.941,46.9691928]
[1673630571950,117.3937,16.973,16.942,49.9691928]
[1673630572153,22.2,16.97,16.942,93.52016461]
[1673630572372,44.23,16.958,16.943,46.9691928]
[1673630572582,44.23,16.958,16.943,29.9691928]
[1673630572827,44.23,16.958,16.94,22.11]
[1673630572997,20.0,16.957,16.933,118.65147367]
[1673630573207,135.8633,16.957,16.934,20.0]
[1673630573417,44.24,16.956,16.934,20.0]
[1673630573944,20.0,16.955,16.935,42.34110556]
[1673630574364,179.9,16.953,16.93,22.07]
[1673630574580,22.04,16.95,16.934,43.40554753]
[1673630575048,64.26,16.949,16.934,43.40554753]
[1673630575205,244.16,16.949,16.934,43.40554753]
[1673630575539,244.16,16.949,16.92,22.17]
[1673630575731,117.7147,16.948,16.932,29.9691928]
[1673630576160,44.26,16.947,16.921,81.18321503]
[1673630576380,156.8092,16.947,16.921,36.85321503]
[1673630576792,22.05,16.94,16.914,44.35]
[1673630577104,179.9,16.946,16.92,22.2]
[1673630577323,44.27,16.945,16.92,22.2]
[1673630577515,44.27,16.945,16.921,81.18321503]
[1673630577939,20.0,16.944,16.922,36.85321503]
[1673630578266,22.19,16.94,16.914,43.29374037]
[1673630578467,293.5934,16.939,16.915,49.9691928]
[1673630578812,337.8734,16.939,16.915,49.9691928]
[1673630579032,20.0,16.938,16.915,29.9691928]
[1673630579423,179.9,16.936,16.915,29.9691928]
[1673630579633,44.29,16.937,16.915,29.9691928]
[1673630579849,44.29,16.935,16.915,29.9691928]
[1673630580055,44.29,16.936,16.911,44.35]
[1673630580275,20.0,16.937,16.911,44.35]
[1673630580276,44.29,16.934,16.912,29.9691928]
[1673630580601,44.29,16.935,16.912,29.9691928]
[1673630580803,44.29,16.936,16.913,44.35]
[1673630581021,44.29,16.934,16.914,20.0]
[1673630581218,44.29,16.935,16.914,63.19107467]
[1673630581542,44.3,16.933,16.915,74.3091928]
[1673630581758,20.0,16.932,16.915,29.9691928]
[1673630581964,64.3,16.932,16.911,44.35]
[1673630582289,64.3,16.932,16.91,22.18]
[1673630582290,20.0,16.931,16.912,29.9691928]
[1673630582499,320.6268,16.93,16.912,29.9691928]
[1673630582803,320.6268,16.93,16.9,110.84]
[1673630582804,409.3868,16.93,16.901,44.38]
[1673630582994,179.9,16.928,16.905,29.9691928]
[1673630583431,179.9,16.926,16.905,29.9691928]
[1673630583836,20.0,16.923,16.905,29.9691928]
[1673630584170,44.32,16.925,16.901,44.38]
[1673630584387,44.33,16.922,16.9,74.3491928]
[1673630584594,112.4351,16.921,16.902,29.9691928]
[1673630584785,156.7651,16.921,16.902,29.9691928]
[1673630585117,112.4351,16.921,16.903,44.38]
[1673630585326,112.4351,16.921,16.902,29.9691928]
[1673630585327,153.9269,16.92,16.902,29.9691928]
[1673630585539,356.0169,16.92,16.904,29.9691928]
[1673630585856,20.0,16.919,16.895,44.4]
[1673630586049,20.0,16.919,16.899,29.9691928]
[1673630586250,44.34,16.918,16.899,29.9691928]
[1673630586671,44.34,16.918,16.892,44.4]
[1673630586881,44.31,16.927,16.901,20.0]
[1673630587115,156.7451,16.928,16.901,20.0]
[1673630587321,112.4351,16.928,16.91,22.19]
[1673630587638,112.4351,16.928,16.911,29.9691928]
[1673630587954,112.4351,16.928,16.912,20.0]
[1673630588264,117.0755,16.938,16.92,22.07]
[1673630588486,117.0755,16.938,16.921,37.0]
[1673630588677,44.29,16.937,16.92,22.07]
[1673630589006,44.29,16.937,16.922,29.9691928]
[1673630589321,44.29,16.937,16.913,121.67471278]
[1673630589511,44.29,16.937,16.915,74.3091928]
[1673630589724,44.29,16.937,16.916,20.0]
[1673630590071,44.29,16.937,16.92,22.07]
[1673630590483,117.0755,16.938,16.921,74.2991928]
[1673630590696,117.0755,16.938,16.922,37.0]
[1673630591018,117.0755,16.938,16.922,66.9691928]
[1673630591219,117.0755,16.938,16.923,74.2891928]
[1673630591423,117.0755,16.938,16.924,32.0]
[1673630591630,117.0755,16.938,16.924,61.9691928]
[1673630591958,44.27,16.944,16.925,74.2891928]
[1673630592169,118.8571,16.947,16.93,19.61]
[1673630592695,118.8571,16.947,16.931,44.3]
[1673630593024,44.26,16.946,16.931,44.3]
[1673630593332,44.26,16.946,16.927,44.31]
[1673630593535,116.5485,16.945,16.928,17.0]
[1673630593729,116.5485,16.945,16.929,20.0]
[1673630593937,116.5485,16.945,16.93,17.0]
[1673630594363,118.8571,16.947,16.931,72.20409664]
[1673630594575,118.8571,16.947,16.931,44.3]
[1673630594793,64.26,16.946,16.93,45.47921083]
[1673630595007,64.26,16.946,16.925,44.32]
[1673630595623,179.9,16.945,16.922,44.33]
[1673630595849,64.26,16.946,16.921,45.47921083]
[1673630595850,179.9,16.943,16.921,44.33]
[1673630596167,179.9,16.941,16.921,44.33]
[1673630596388,179.9,16.941,16.92,19.75]
[1673630596688,44.28,16.94,16.92,19.75]
[1673630596877,44.28,16.94,16.921,44.33]
[1673630597091,44.28,16.941,16.921,44.33]
[1673630597303,119.5822,16.942,16.922,111.98346368]
[1673630597845,119.5822,16.942,16.924,20.0]
[1673630598248,119.5822,16.942,16.925,156.30346368]
[1673630598452,299.4822,16.942,16.926,20.0]
[1673630598662,44.28,16.941,16.926,20.0]
[1673630599100,44.28,16.941,16.927,27.8997909]
[1673630599314,119.5822,16.942,16.927,27.8997909]
[1673630599499,119.5822,16.942,16.928,44.31]
[1673630599959,119.5822,16.942,16.929,44.8997909]
[1673630600255,119.5822,16.942,16.93,20.0]
[1673630600458,119.5822,16.942,16.93,75.7995818]
[1673630600663,44.26,16.946,16.93,47.8997909]
[1673630600884,44.26,16.946,16.931,27.8997909]
[1673630601078,298.7571,16.947,16.932,20.0]
[1673630601318,44.26,16.946,16.932,20.0]
[1673630601506,179.9,16.945,16.932,27.8997909]
[1673630601715,20.0,16.944,16.927,45.47921083]
[1673630601936,179.2689,16.944,16.928,27.8997909]
[1673630602352,159.2689,16.944,16.928,27.8997909]
[1673630602873,114.9989,16.944,16.928,27.8997909]
[1673630603084,114.9989,16.944,16.929,17.0]
[1673630603289,44.26,16.946,16.93,20.0]
[1673630603502,118.8571,16.947,16.931,17.0]
[1673630603721,118.8571,16.947,16.932,20.0]
[1673630603942,118.8571,16.947,16.932,47.8997909]
[1673630604257,118.8571,16.947,16.933,110.37900173]
[1673630604658,118.8571,16.947,16.934,73.39008369]
[1673630604859,118.8571,16.947,16.935,37.0]
[1673630605069,118.8571,16.947,16.935,64.91087286]
[1673630605284,118.8571,16.947,16.936,27.91087286]
[1673630605495,44.26,16.946,16.936,27.91087286]
[1673630605730,186.0062233,16.959,16.94,98.77]
[1673630606122,186.0062233,16.959,16.941,133.91533481]
[1673630606345,186.0062233,16.959,16.941,232.10310162]
[1673630606543,186.0062233,16.959,16.943,20.0]
[1673630606764,186.0062233,16.959,16.944,37.0]
[1673630606984,186.0062233,16.959,16.944,152.94549342]
[1673630607297,186.0062233,16.959,16.945,115.94549342]
[1673630607513,186.0062233,16.959,16.946,37.0]
[1673630607726,186.0062233,16.959,16.946,200.79213607]
[1673630607941,186.0062233,16.959,16.946,137.48197746]
[1673630608126,186.0062233,16.959,16.947,17.0]
[1673630608338,186.0062233,16.959,16.946,69.63533481]
[1673630608663,20.0,16.957,16.941,51.11397572]
[1673630608866,111.4683,16.956,16.937,44.29]
[1673630609081,271.3856,16.956,16.938,27.91087286]
[1673630609821,199.9,16.955,16.931,1022.74179528]
[1673630610035,20.0,16.953,16.931,392.3]
[1673630610345,20.0,16.953,16.932,27.91087286]
[1673630610563,44.25,16.952,16.932,27.91087286]
[1673630611065,44.25,16.952,16.932,72.21087286]
[1673630611275,44.25,16.952,16.932,118.52103147]
[1673630611485,44.25,16.952,16.933,27.12944236]
[1673630611701,44.25,16.952,16.934,20.0]
[1673630611922,44.25,16.952,16.935,17.0]
[1673630612117,44.25,16.952,16.936,20.0]
[1673630612328,44.25,16.952,16.937,17.0]
[1673630612572,44.24,16.954,16.937,88.41944236]
[1673630612768,44.24,16.955,16.938,27.12944236]
[1673630613077,44.25,16.953,16.932,80.895771]
[1673630613287,20.0,16.952,16.923,44.32]
[1673630613499,44.25,16.952,16.931,419.42944236]
[1673630613699,44.25,16.953,16.931,465.73960097]
[1673630613909,44.25,16.951,16.932,44.3]
[1673630614119,44.25,16.952,16.932,44.3]
[1673630614333,44.25,16.95,16.933,27.12944236]
[1673630614547,224.15,16.951,16.933,27.12944236]
[1673630614768,224.15,16.951,16.931,392.3]
[1673630614769,179.9,16.948,16.931,392.3]
[1673630615076,179.9,16.948,16.933,27.12944236]
[1673630615290,179.9,16.946,16.931,392.3]
[1673630615497,179.9,16.946,16.921,436.63]
[1673630615688,179.9,16.944,16.928,27.12944236]
[1673630616234,179.9,16.942,16.928,27.12944236]
[1673630616455,179.9,16.942,16.921,482.94015861]
[1673630616456,179.9,16.942,16.921,392.3]
[1673630616763,179.9,16.94,16.921,392.3]
[1673630616956,117.638,16.939,16.921,392.3]
[1673630617293,161.918,16.939,16.921,419.42944236]
[1673630617499,20.0,16.937,16.921,392.3]
[1673630618007,199.9,16.935,16.921,392.3]
[1673630618220,199.9,16.935,16.915,593.9]
[1673630618438,20.0,16.932,16.915,593.9]
[1673630618649,116.5062,16.931,16.911,392.3]
[1673630618971,160.8062,16.931,16.916,27.12944236]
[1673630619178,116.5062,16.931,16.916,27.12944236]
[1673630619689,116.5062,16.931,16.917,44.34]
[1673630619903,116.5062,16.931,16.916,27.12944236]
[1673630620129,116.5062,16.931,16.918,27.12944236]
[1673630620323,116.5062,16.931,16.919,17.0]
[1673630620530,116.5062,16.931,16.919,61.33]
[1673630620752,116.5062,16.931,16.92,27.12944236]
[1673630620962,116.5062,16.931,16.92,73.43960097]
[1673630621175,116.5062,16.931,16.92,90.66413433]
[1673630621383,20.0,16.929,16.915,27.12944236]
[1673630621605,20.0,16.929,16.908,44.36]
[1673630621809,44.31,16.928,16.908,44.36]
[1673630622019,44.31,16.928,16.906,46.31015861]
[1673630622428,199.9,16.927,16.901,44.38]
[1673630622640,199.9,16.927,16.902,27.12944236]
[1673630622850,44.32,16.926,16.902,27.12944236]
[1673630623052,44.32,16.926,16.903,90.69015861]
[1673630623264,44.32,16.926,16.903,135.04413433]
[1673630623471,199.9,16.925,16.904,72.68018229]
[1673630623682,20.0,16.924,16.901,44.38]
[1673630623894,20.0,16.922,16.899,44.39]
[1673630624127,20.0,16.922,16.89,39.94]
[1673630624128,19.81,16.92,16.896,26.37002368]
[1673630624324,298.2347,16.919,16.895,46.31015861]
[1673630624652,20.0,16.918,16.895,46.31015861]
[1673630625176,179.9,16.916,16.895,90.71015861]
[1673630625388,20.0,16.915,16.893,44.4]
[1673630625581,179.9,16.914,16.891,44.41]
[1673630625997,224.25,16.913,16.89,44.41]
[1673630626219,254.2191928,16.913,16.89,44.41]
[1673630626429,20.0,16.912,16.89,44.41]
[1673630626850,20.0,16.915,16.89,44.41]
[1673630626851,160.2372,16.911,16.89,44.41]
[1673630627066,160.2372,16.911,16.891,46.31015861]
[1673630627277,160.2372,16.911,16.891,26.4528987]
[1673630627622,20.0,16.91,16.892,26.4528987]
[1673630627781,137.5032,16.91,16.892,26.4528987]
[1673630627989,44.36,16.909,16.892,26.4528987]
[1673630628435,20.0,16.908,16.886,46.31015861]
[1673630628620,20.0,16.908,16.888,52.9057974]
[1673630628837,199.9,16.906,16.888,26.4528987]
[1673630629162,199.9,16.906,16.882,44.43]
[1673630629379,199.9,16.906,16.87,98.86]
[1673630629380,20.0,16.903,16.883,26.4528987]
[1673630629565,114.7896,16.902,16.883,26.4528987]
[1673630629779,339.0696,16.902,16.883,26.4528987]
[1673630629988,339.0696,16.902,16.878,44.44]
[1673630629989,20.0,16.901,16.878,44.44]
[1673630630200,19.81,16.9,16.877,26.4528987]
[1673630630415,44.38,16.9,16.879,26.4528987]
[1673630632108,44.38,16.9,16.879,72.76305731]
[1673630632416,44.38,16.9,16.881,20.0]
[1673630632824,44.38,16.9,16.882,70.8828987]
[1673630633044,159.3364,16.901,16.883,20.0]
[1673630633246,114.9564,16.901,16.884,17.0]
[1673630633459,114.9564,16.901,16.885,20.0]
[1673630633667,114.7896,16.902,16.886,17.0]
[1673630633887,44.37,16.905,16.886,82.08336065]
[1673630634092,163.2437,16.908,16.887,176.91718962]
[1673630634309,20.0,16.907,16.887,203.37008832]
[1673630634516,20.0,16.907,16.888,26.4528987]
[1673630634927,224.27,16.906,16.888,44.42]
[1673630635159,224.27,16.906,16.886,44.42]
[1673630635354,20.0,16.905,16.885,20.0]
[1673630635759,20.0,16.907,16.886,70.8728987]
[1673630635760,44.37,16.904,16.886,70.8728987]
[1673630636287,20.0,16.907,16.887,26.4528987]
[1673630636288,20.0,16.905,16.887,26.4528987]
[1673630636505,44.38,16.903,16.885,20.0]
[1673630636732,114.7829,16.902,16.885,26.4528987]
[1673630636933,159.1629,16.902,16.886,64.42]
[1673630637147,159.1629,16.902,16.886,20.0]
[1673630637370,159.1629,16.902,16.886,46.4528987]
[1673630638207,20.0,16.901,16.886,46.4528987]
[1673630638631,44.38,16.9,16.886,20.0]
[1673630638947,44.38,16.9,16.883,46.4528987]
[1673630639155,44.38,16.9,16.883,90.8828987]
[1673630639366,64.38,16.901,16.884,120.31962637]
[1673630639576,64.38,16.901,16.885,20.0]
[1673630639787,64.38,16.901,16.885,46.4528987]
[1673630640091,44.38,16.901,16.886,26.4528987]
[1673630640304,114.7829,16.902,16.886,26.4528987]
[1673630640832,114.7829,16.902,16.887,17.0]
[1673630641046,44.36,16.909,16.887,17.0]
[1673630641259,44.35,16.914,16.891,20.0]
[1673630641576,44.35,16.914,16.892,43.4528987]
[1673630641577,179.9,16.913,16.892,43.4528987]
[1673630641789,44.35,16.914,16.893,20.0]
[1673630642104,44.35,16.912,16.894,17.0]
[1673630642283,224.25,16.913,16.895,20.0]
[1673630642493,340.1372,16.911,16.895,20.0]
[1673630642703,340.1372,16.911,16.851,429.98843235]
[1673630642704,199.9,16.906,16.889,26.4528987]
[1673630642914,44.37,16.907,16.889,26.4528987]
[1673630643125,115.8872,16.911,16.88,39.94]
[1673630643126,44.36,16.91,16.896,26.4528987]
[1673630643447,115.8872,16.911,16.896,26.4528987]
[1673630643662,115.8872,16.911,16.897,44.39]
[1673630643869,115.8872,16.911,16.896,26.4528987]
[1673630644599,115.8872,16.911,16.89,44.41]
[1673630644813,64.36,16.91,16.891,43.4528987]
[1673630645023,44.36,16.91,16.891,43.4528987]
[1673630645339,115.8872,16.911,16.892,26.4528987]
[1673630645541,44.36,16.909,16.893,17.0]
[1673630645757,44.36,16.91,16.893,17.0]
[1673630645972,44.36,16.908,16.894,46.31015861]
[1673630646193,20.0,16.908,16.886,44.42]
[1673630646380,44.37,16.907,16.886,44.42]
[1673630646591,44.37,16.907,16.885,90.79633235]
[1673630646818,44.37,16.907,16.885,64.34343365]
[1673630647029,44.37,16.907,16.886,44.42]
[1673630647437,179.9,16.906,16.886,44.42]
[1673630647856,179.9,16.904,16.886,44.42]
[1673630648074,299.3949,16.903,16.887,17.0]
[1673630648385,296.0745,16.902,16.882,90.74015861]
[1673630648714,296.0745,16.902,16.883,45.7129717]
[1673630648915,44.38,16.901,16.883,20.0]
[1673630649133,44.38,16.901,16.884,20.0]
[1673630649332,160.5545,16.902,16.885,20.0]
[1673630649538,296.0745,16.902,16.885,20.0]
[1673630649755,44.38,16.901,16.886,44.42]
[1673630649972,116.1745,16.902,16.885,64.42]
[1673630650191,160.5545,16.902,16.886,17.0]
[1673630650387,340.4545,16.902,16.886,17.0]
[1673630650602,116.1745,16.902,16.885,64.42]
[1673630650813,44.38,16.901,16.885,20.0]
[1673630651022,44.38,16.901,16.886,44.42]
[1673630651226,116.1745,16.902,16.886,44.42]
[1673630651555,179.9,16.91,16.89,19.91]
[1673630651748,179.9,16.91,16.891,20.0]
[1673630651961,179.9,16.908,16.891,44.41]
[1673630652164,20.0,16.907,16.887,84.94062056]
[1673630652379,179.9,16.906,16.887,46.31015861]
[1673630652813,179.9,16.904,16.887,46.31015861]
[1673630653004,179.9,16.902,16.883,44.43]
[1673630653222,20.0,16.901,16.884,20.0]
[1673630653430,64.38,16.901,16.884,66.31015861]
[1673630653868,199.9,16.901,16.885,90.73015861]
[1673630654177,199.9,16.901,16.886,20.0]
[1673630655025,20.0,16.899,16.884,20.0]
[1673630655423,20.0,16.899,16.884,66.31015861]
[1673630655753,108.6749,16.902,16.885,44.42]
[1673630655963,108.6749,16.902,16.886,20.0]
[1673630656170,108.6749,16.902,16.887,17.0]
[1673630656410,108.6749,16.902,16.887,61.42]
[1673630657224,108.6749,16.902,16.887,107.73015861]
[1673630658177,108.6749,16.902,16.887,146.36062056]
[1673630658702,108.6749,16.902,16.887,129.36062056]
[1673630659116,179.9,16.907,16.888,40.0]
[1673630659329,157.0786,16.912,16.89,19.91]
[1673630659544,112.7286,16.912,16.89,19.91]
[1673630659729,112.7286,16.912,16.891,196.90718962]
[1673630660074,112.7286,16.912,16.892,132.49718962]
[1673630660278,112.7286,16.912,16.893,37.0]
[1673630660469,112.7286,16.912,16.893,166.34062056]
[1673630660680,292.6286,16.912,16.894,46.31015861]
[1673630660895,295.7872,16.911,16.895,37.0]
[1673630661108,115.8872,16.911,16.895,81.4]
[1673630661318,115.8872,16.911,16.895,127.71015861]
[1673630661853,115.8872,16.911,16.895,166.34062056]
[1673630662062,179.9,16.91,16.895,110.71015861]
[1673630662273,179.9,16.91,16.895,20.0]
[1673630662495,179.9,16.91,16.894,20.0]
[1673630662702,20.0,16.909,16.894,44.4]
[1673630662884,20.0,16.909,16.895,20.0]
[1673630663094,179.9,16.907,16.88,40.02]
[1673630663520,179.9,16.905,16.881,46.31015861]
[1673630663736,179.9,16.903,16.881,90.74015861]
[1673630663944,20.0,16.9,16.881,90.74015861]
[1673630664359,224.29,16.899,16.881,90.74015861]
[1673630664569,44.39,16.899,16.882,46.31015861]
[1673630665007,224.28,16.901,16.883,44.43]
[1673630665193,44.38,16.901,16.883,44.43]
[1673630665405,115.0122,16.902,16.884,46.31015861]
[1673630665952,44.36,16.908,16.884,46.31015861]
[1673630665953,44.36,16.908,16.89,19.91]
[1673630666153,44.35,16.913,16.891,17.0]
[1673630666348,154.5588,16.913,16.891,107.72015861]
[1673630666560,179.9,16.91,16.892,20.0]
[1673630666790,179.9,16.91,16.893,17.0]
[1673630666977,44.36,16.91,16.894,20.0]
[1673630667192,44.35,16.912,16.895,17.0]
[1673630667425,44.35,16.912,16.896,20.0]
[1673630667632,110.2088,16.913,16.896,20.0]
[1673630667633,179.9,16.909,16.896,20.0]
[1673630668042,179.9,16.91,16.896,20.0]
[1673630668246,179.9,16.91,16.894,46.31015861]
[1673630668574,20.0,16.906,16.886,436.72]
[1673630668787,179.9,16.904,16.886,436.72]
[1673630668997,179.9,16.904,16.886,438.61015861]
[1673630669183,179.9,16.904,16.887,44.42]
[1673630669398,44.38,16.903,16.887,44.42]
[1673630669604,44.38,16.903,16.887,90.73015861]
[1673630669815,224.27,16.904,16.887,90.73015861]
[1673630670255,179.9,16.904,16.887,90.73015861]
[1673630670877,224.27,16.904,16.887,90.73015861]
[1673630671205,44.37,16.904,16.887,46.31015861]
[1673630671426,108.937,16.905,16.888,44.42]
[1673630671738,108.937,16.905,16.889,46.31015861]
[1673630671949,108.937,16.905,16.89,17.0]
[1673630672138,288.837,16.905,16.89,61.41]
[1673630672360,288.837,16.905,16.89,17.0]
[1673630672555,288.837,16.905,16.889,46.31015861]
[1673630672764,108.937,16.905,16.889,46.31015861]
[1673630672993,108.937,16.905,16.89,44.41]
[1673630673828,108.937,16.905,16.891,17.0]
[1673630674146,108.937,16.905,16.891,63.31015861]
[1673630675921,108.937,16.905,16.891,46.31015861]
[1673630676138,224.27,16.904,16.886,392.3]
[1673630676348,224.27,16.904,16.887,44.42]
[1673630676871,224.27,16.904,16.887,46.31015861]
[1673630678131,20.0,16.903,16.887,46.31015861]
[1673630678341,224.27,16.904,16.887,46.31015861]
[1673630678553,224.27,16.904,16.887,90.73015861]
[1673630678774,179.9,16.904,16.887,90.73015861]
[1673630678965,179.9,16.902,16.888,46.31015861]
[1673630679179,292.8228,16.902,16.879,392.3]
[1673630679384,179.9,16.9,16.88,20.0]
[1673630679594,20.0,16.899,16.88,90.1529717]
[1673630679818,20.0,16.897,16.881,25.7129717]
[1673630680031,20.0,16.897,16.882,20.0]
[1673630680225,20.0,16.897,16.88,64.44]
[1673630681191,179.9,16.898,16.88,64.44]
[1673630681398,199.9,16.899,16.88,64.44]
[1673630682021,179.9,16.897,16.88,64.44]
[1673630682223,179.9,16.897,16.881,25.7129717]
[1673630682442,179.9,16.897,16.882,20.0]
[1673630682650,179.9,16.897,16.882,64.43]
[1673630682870,179.9,16.897,16.882,90.1429717]
[1673630683083,179.9,16.899,16.883,17.0]
[1673630683390,179.9,16.899,16.884,20.0]
[1673630683604,179.9,16.897,16.884,20.0]
[1673630684235,224.28,16.9,16.884,25.7129717]
[1673630684450,224.28,16.9,16.885,17.0]
[1673630684656,20.0,16.899,16.886,20.0]
[1673630684864,244.29,16.899,16.886,20.0]
[1673630685286,244.29,16.899,16.881,20.0]
[1673630685496,199.9,16.899,16.881,20.0]
[1673630685723,224.29,16.898,16.881,45.7129717]